bitfinex/quotes_ETHUSD_20240820
["timestamp","ask_amount","ask_price","bid_price","bid_amount"]
[1724197048304,6.26182,2584.6,2584.1,6.34971]
[1724197048530,6.26182,2584.6,2584.1,10.21943]
[1724197048733,6.26182,2584.6,2584.1,6.34971]
[1724197049033,2.3927,2584.6,2584.1,6.34971]
[1724197049195,6.26177,2584.6,2584.1,6.34971]
[1724197049395,2.3927,2584.6,2584.1,10.21945]
[1724197050229,3.86895,2584.7,2584.2,3.86964]
[1724197052403,3.86871,2584.9,2584.4,3.86934]
[1724197052739,3.0,2584.8,2584.5,3.8692]
[1724197052895,6.86856,2585.0,2584.5,3.8692]
[1724197054929,0.4704083,2584.9,2584.5,3.8692]
[1724197055824,0.4704083,2584.9,2584.4,6.33694]
[1724197056026,0.4704083,2584.9,2584.5,3.86916]
[1724197057538,4.3390283,2584.9,2584.4,7.4597135]
[1724197057834,3.0,2584.8,2584.4,7.4597135]
[1724197058339,0.46995451,2584.7,2584.4,6.33687]
[1724197058633,3.0,2584.8,2584.4,6.33687]
[1724197058835,0.46995451,2584.6,2584.4,6.33687]
[1724197059033,3.0,2584.8,2584.4,6.33687]
[1724197059241,0.46995451,2584.5,2584.4,6.970547]
[1724197059395,3.0,2584.8,2584.4,6.970547]
[1724197059952,0.46995451,2584.7,2584.4,6.970547]
[1724197060105,3.0,2584.8,2584.4,6.970547]
[1724197060301,0.46995451,2584.7,2584.4,6.33686]
[1724197060516,3.0,2584.8,2584.4,6.33686]
[1724197060835,0.46995451,2584.6,2584.5,3.8692]
[1724197061044,3.86862,2584.9,2584.5,3.8692]
[1724197061231,0.46995451,2584.6,2584.4,6.33696]
[1724197061428,3.86862,2584.9,2584.4,6.33696]
[1724197062035,0.46995451,2584.8,2584.4,6.33696]
[1724197062272,0.46995451,2584.8,2584.5,1.020634]
[1724197064114,0.46995451,2584.8,2584.5,4.889824]
[1724197067233,0.46995451,2584.8,2584.5,3.86919]
[1724197067955,0.46995451,2584.8,2584.4,6.33696]
[1724197071637,0.46995451,2584.8,2584.4,3.86936]
[1724197071838,7.9764,2584.7,2584.2,6.30616]
[1724197072078,1.686,2584.5,2584.1,7.40896905]
[1724197072276,1.686,2584.5,2584.1,11.27873905]
[1724197072442,0.47009891,2584.4,2584.1,11.27873905]
[1724197072840,1.686,2584.3,2584.1,7.40896905]
[1724197073339,0.47000263,2584.2,2584.1,7.40896905]
[1724197073536,5.55529,2584.5,2584.0,6.30633]
[1724197073740,0.47000263,2584.4,2584.0,6.30633]
[1724197074140,0.47000263,2584.4,2584.0,10.17622]
[1724197075143,0.47000263,2584.4,2584.1,3.86978]
[1724197077588,0.47000263,2584.4,2584.3,3.86951]
[1724197077762,1.686,2584.7,2584.3,3.86951]
[1724197077952,0.47000263,2584.6,2584.3,3.86951]
[1724197078371,0.47000263,2584.6,2584.4,3.86936]
[1724197079477,0.47000263,2584.6,2584.3,3.86951]
[1724197079986,0.47000263,2584.6,2584.1,4.887321]
[1724197079987,1.686,2584.5,2584.1,3.86971]
[1724197080160,1.686,2584.3,2583.9,7.40896905]
[1724197080361,7.9025,2584.1,2583.9,7.40896905]
[1724197080575,4.33972193,2584.0,2583.9,7.40896905]
[1724197080965,0.46976193,2584.0,2583.9,7.40896905]
[1724197081966,0.46976193,2584.0,2583.9,11.27907905]
[1724197083066,0.46976193,2584.0,2583.9,13.16478612]
[1724197083274,1.686,2584.3,2583.9,13.16478612]
[1724197083492,0.46976193,2584.0,2583.9,13.16478612]
[1724197084004,1.686,2584.3,2583.9,13.16478612]
[1724197084156,0.46976193,2584.2,2583.9,13.16478612]
[1724197084356,1.686,2584.3,2583.9,13.16478612]
[1724197084557,6.86946,2584.4,2583.9,13.16478612]
[1724197084558,0.46976193,2584.1,2583.9,13.16478612]
[1724197084818,6.86946,2584.4,2583.9,13.16478612]
[1724197085056,0.46976193,2584.0,2583.9,5.75581707]
[1724197085208,6.86946,2584.4,2583.9,5.75581707]
[1724197085408,6.86946,2584.4,2583.9,9.62592707]
[1724197085409,0.46976193,2584.0,2583.9,9.62592707]
[1724197085599,3.0,2584.4,2584.1,3.86972]
[1724197085949,6.86909,2584.6,2584.1,3.86972]
[1724197086430,3.0,2584.6,2584.2,3.86966]
[1724197086888,6.86908,2584.6,2584.1,6.28349]
[1724197087088,3.86923,2584.5,2583.9,7.74]
[1724197087294,3.86923,2584.5,2584.0,3.86993]
[1724197088018,3.86923,2584.5,2583.8,7.6333017]
[1724197088019,3.86937,2584.4,2583.8,7.6333017]
[1724197088219,2.3375,2584.3,2583.9,3.87011]
[1724197090330,2.3375,2584.3,2583.8,5.2197317]
[1724197090547,3.86969,2584.2,2583.8,5.2197317]
[1724197090903,2.3375,2584.3,2583.9,3.87005]
[1724197091094,2.3375,2584.3,2583.9,4.77902217]
[1724197091938,3.86937,2584.4,2583.9,4.77902217]
[1724197094406,3.86937,2584.4,2584.0,6.24114]
[1724197094639,3.86922,2584.5,2584.0,6.24114]
[1724197094856,3.0,2584.4,2584.0,6.24114]
[1724197096947,6.86937,2584.4,2584.0,6.24114]
[1724197097468,3.0,2584.4,2584.0,6.24114]
[1724197097670,3.0,2584.4,2584.1,3.86973]
[1724197097876,0.40518995,2584.7,2584.2,3.86959]
[1724197098070,3.40518995,2584.7,2584.2,3.86959]
[1724197098290,3.86908,2584.6,2584.0,11.25699117]
[1724197098438,7.73823,2584.6,2584.1,3.8698]
[1724197098844,3.86908,2584.6,2584.1,3.8698]
[1724197099970,0.45116459,2584.5,2584.1,4.99549012]
[1724197100369,0.45116459,2584.5,2584.2,3.86964]
[1724197101771,0.45116459,2584.5,2584.4,3.86937]
[1724197101949,0.00557015,2584.8,2584.4,3.86937]
[1724197102148,0.45142866,2584.7,2584.4,3.86937]
[1724197102360,3.00557015,2584.8,2584.4,3.86937]
[1724197102680,0.45142866,2584.7,2584.4,3.86937]
[1724197103079,3.00557015,2584.8,2584.4,3.86937]
[1724197103385,6.87435015,2584.8,2584.3,6.2463]
[1724197103582,0.45142866,2584.7,2584.3,6.2463]
[1724197103757,6.87435015,2584.8,2584.3,6.2463]
[1724197103960,0.45142866,2584.7,2584.3,6.2463]
[1724197104280,6.87435015,2584.8,2584.3,7.37046801]
[1724197104487,0.45142866,2584.6,2584.3,7.37046801]
[1724197104786,0.45142866,2584.5,2584.3,11.23990801]
[1724197104980,1.686,2584.7,2584.3,7.37040801]
[1724197105160,0.45142866,2584.6,2584.3,7.37040801]
[1724197105661,1.686,2584.5,2584.3,3.86944]
[1724197106183,0.45142866,2584.4,2584.3,3.86944]
[1724197106570,0.45142866,2584.4,2584.0,2.3626]
[1724197106883,0.45142866,2584.4,2583.9,3.87004]
[1724197107190,1.686,2584.3,2583.9,3.87004]
[1724197107757,0.45142866,2584.2,2583.9,3.87004]
[1724197108158,1.686,2584.3,2583.9,7.74007]
[1724197108351,0.45142866,2584.1,2583.9,7.74007]
[1724197108546,0.45142866,2584.1,2584.0,3.86996]
[1724197109487,1.686,2584.5,2584.1,3.86968]
[1724197112794,1.686,2584.5,2584.1,6.36818]
[1724197114025,3.86909,2584.6,2584.1,6.36818]
[1724197114224,5.55492,2584.7,2584.2,3.86964]
[1724197114380,9.42392,2584.7,2584.2,3.86964]
[1724197114720,5.55337791,2584.7,2584.2,3.86964]
[1724197115175,0.45142866,2584.6,2584.2,3.86964]
[1724197115376,0.45142866,2584.6,2584.2,4.99978791]
[1724197116517,0.45142866,2584.6,2584.4,3.86935]
[1724197116724,0.45142866,2584.6,2584.5,2.4906]
[1724197116899,0.00557015,2584.8,2584.5,6.35982]
[1724197117563,0.45163708,2584.7,2584.5,6.35982]
[1724197117793,0.45163708,2584.7,2584.5,7.382753]
[1724197117993,0.45163708,2584.6,2584.5,7.382753]
[1724197118193,0.45163708,2584.6,2584.5,6.35982]
[1724197118395,0.00557015,2584.8,2584.5,6.35982]
[1724197118995,0.45163708,2584.7,2584.5,6.35982]
[1724197119209,0.45163708,2584.7,2584.6,7.73814]
[1724197119387,0.00557015,2584.8,2584.7,10.18844]
[1724197119592,0.00557015,2584.8,2584.7,11.375884]
[1724197120806,0.4573948,2584.8,2584.7,11.375884]
[1724197121012,0.00557015,2584.8,2584.7,11.375884]
[1724197121703,0.4573948,2584.8,2584.7,11.375884]
[1724197121909,0.00557015,2584.8,2584.7,11.375884]
[1724197122105,0.4573948,2584.8,2584.7,11.375884]
[1724197122310,0.00557015,2584.8,2584.7,11.375884]
[1724197122671,0.4573948,2584.8,2584.7,11.375884]
[1724197124172,0.4573948,2584.8,2584.7,7.506964]
[1724197124484,0.4573948,2584.8,2584.7,5.056364]
[1724197126198,0.4573948,2584.8,2584.7,7.393764]
[1724197126707,0.4573948,2584.8,2584.7,12.948684]
[1724197126911,0.4573948,2584.8,2584.7,13.498684]
[1724197127108,0.00557015,2584.8,2584.7,13.498684]
[1724197128811,6.35334,2585.5,2585.0,3.86844]
[1724197129003,2.13796357,2585.4,2585.0,3.86844]
[1724197129201,6.00586357,2585.4,2585.0,3.86844]
[1724197129392,3.86812,2585.3,2584.8,3.8687]
[1724197129934,0.45196357,2585.2,2584.8,3.8687]
[1724197130277,3.86812,2585.3,2584.8,3.8687]
[1724197130479,4.32014357,2585.2,2584.8,3.8687]
[1724197130823,0.45196357,2585.2,2584.8,7.73739]
[1724197131004,3.86802,2585.3,2584.9,3.8686]
[1724197131188,0.45196357,2585.2,2584.9,3.8686]
[1724197131390,3.86802,2585.3,2584.9,3.8686]
[1724197131589,0.45244287,2585.2,2584.9,3.8686]
[1724197131832,3.86802,2585.3,2584.9,3.8686]
[1724197132002,5.55387,2585.4,2584.9,3.8686]
[1724197132206,1.686,2585.4,2585.0,3.86843]
[1724197132393,1.686,2585.4,2585.0,6.28603]
[1724197132592,3.0,2585.6,2585.0,6.28603]
[1724197132593,0.45244287,2585.3,2585.0,6.28603]
[1724197132925,4.686,2585.6,2585.1,3.86822]
[1724197133215,0.45244287,2585.2,2585.1,3.86822]
[1724197133798,8.55361,2585.6,2585.1,3.86822]
[1724197134010,0.45244287,2585.5,2585.1,3.86822]
[1724197135115,0.45244287,2585.5,2585.2,3.86814]
[1724197140513,0.45244287,2585.5,2585.1,3.86831]
[1724197148185,0.45244287,2585.5,2585.3,3.86798]
[1724197148838,3.0,2585.7,2585.2,3.86804]
[1724197148839,6.86744,2585.7,2585.2,3.86804]
[1724197149030,3.0,2585.7,2585.3,3.86802]
[1724197149442,0.43778693,2585.6,2585.3,3.86802]
[1724197149884,5.99146693,2585.6,2585.1,4.55637255]
[1724197150086,5.99146693,2585.6,2585.1,3.86831]
[1724197150087,2.4405,2585.5,2585.1,3.86831]
[1724197150491,0.43778693,2585.4,2585.1,3.86831]
[1724197151559,0.43778693,2585.4,2585.0,3.86847]
[1724197151937,5.99166693,2585.4,2585.0,3.86847]
[1724197152161,2.12378693,2585.4,2585.0,3.86847]
[1724197154705,2.12378693,2585.4,2585.0,3.86839]
[1724197154868,2.12378693,2585.4,2585.0,7.73677]
[1724197156226,2.12378693,2585.4,2585.0,3.86838]
[1724197158213,2.12378693,2585.4,2585.0,7.73677]
[1724197160133,0.43778693,2585.4,2585.0,8.78655367]
[1724197160966,0.43778693,2585.4,2585.0,4.91816367]
[1724197161449,2.12378693,2585.4,2585.0,4.91816367]
[1724197161647,2.12378693,2585.4,2585.0,3.86838]
[1724197168245,5.99166693,2585.4,2585.0,3.86838]
[1724197168630,2.12378693,2585.4,2585.0,3.86838]
[1724197169132,2.12378693,2585.4,2585.0,7.73676]
[1724197169537,2.12378693,2585.4,2585.0,3.86838]
[1724197169932,3.86852,2585.0,2584.5,6.11925]
[1724197170244,5.55452,2585.0,2584.4,3.86925]
[1724197170451,0.43780793,2584.9,2584.4,3.86925]
[1724197170644,2.4531,2584.8,2584.4,3.86925]
[1724197170987,0.43775891,2584.7,2584.4,3.86925]
[1724197171336,2.4531,2584.8,2584.4,3.86925]
[1724197171537,0.43775891,2584.6,2584.2,4.99976791]
[1724197171748,8.00787,2584.8,2584.2,8.86935791]
[1724197171955,0.43775891,2584.5,2584.3,3.86949]
[1724197172156,8.00787,2584.8,2584.3,5.7425797]
[1724197172334,0.43775891,2584.4,2584.3,3.86949]
[1724197172539,8.00787,2584.8,2584.3,3.86949]
[1724197172760,0.43775891,2584.4,2584.3,3.86949]
[1724197173653,4.1391,2584.8,2584.3,3.86949]
[1724197173878,0.43775891,2584.7,2584.3,3.86949]
[1724197174056,0.00557015,2584.7,2584.4,3.86936]
[1724197174254,0.43775891,2584.6,2584.4,3.86936]
[1724197176054,0.00557015,2584.7,2584.6,3.86907]
[1724197176244,0.4429369,2584.7,2584.6,3.86907]
[1724197184674,0.4429369,2584.7,2584.5,3.8692]
[1724197185995,2.6959369,2584.7,2584.3,3.8694]
[1724197187088,2.6959369,2584.7,2584.4,3.86932]
[1724197187262,0.4429369,2584.7,2584.4,5.38408891]
[1724197187467,0.4429369,2584.7,2584.4,1.51476891]
[1724197189794,0.4429369,2584.7,2584.4,5.38409891]
[1724197191477,0.4429369,2584.7,2584.4,3.86933]
[1724197191653,2.4615,2584.6,2584.2,11.27862905]
[1724197191857,2.4615,2584.6,2583.9,2.4951]
[1724197191858,5.99275181,2584.5,2584.0,3.8699]
[1724197192875,2.12347181,2584.5,2584.1,3.86978]
[1724197193692,0.43747181,2584.5,2584.1,3.86978]
[1724197193908,0.43747181,2584.5,2584.4,3.86937]
[1724197194114,0.00557015,2584.7,2584.5,3.86921]
[1724197194262,0.43747181,2584.6,2584.5,3.86921]
[1724197194689,0.43747181,2584.6,2584.4,3.86937]
[1724197195570,0.43747181,2584.6,2584.4,3.86929]
[1724197195771,0.43747181,2584.6,2584.4,4.256219]
[1724197196272,0.43747181,2584.6,2584.5,3.86922]
[1724197205208,0.43747181,2584.6,2584.5,7.73844]
[1724197205615,0.00557015,2584.7,2584.6,7.73814]
[1724197205976,0.4429159,2584.7,2584.6,7.73814]
[1724197206202,0.00557015,2584.7,2584.6,11.1149469]
[1724197206403,0.4429159,2584.7,2584.6,12.8009469]
[1724197206678,0.00557015,2584.7,2584.6,12.8009469]
[1724197208113,0.4429159,2584.7,2584.6,12.8009469]
[1724197209828,0.00557015,2584.7,2584.6,12.8009469]
[1724197211026,0.00557015,2584.7,2584.6,11.1149469]
[1724197211542,0.43440543,2584.7,2584.6,11.1149469]
[1724197222369,6.36558,2585.6,2585.1,3.86822]
[1724197224556,6.36558,2585.6,2585.1,7.73647]
[1724197226127,2.4979,2585.6,2585.2,3.86814]
[1724197226331,5.4979,2585.6,2585.2,3.86814]
[1724197228830,9.36547,2585.6,2585.2,3.86814]
[1724197229639,1.686,2585.5,2585.2,3.86814]
[1724197231140,5.4979,2585.6,2585.2,3.86814]
[1724197231460,3.0,2585.6,2585.2,8.752932]
[1724197232049,3.0,2585.6,2585.2,4.884842]
[1724197234767,3.0,2585.6,2585.2,8.752932]
[1724197234959,0.46832415,2585.5,2585.2,3.86807]
[1724197235597,0.46832415,2585.5,2585.2,3.86806]
[1724197238213,0.46832415,2585.5,2585.4,6.18457]
[1724197238691,8.55314,2585.9,2585.4,6.18457]
[1724197238861,0.46832415,2585.5,2585.4,6.18457]
[1724197239059,8.55314,2585.9,2585.4,7.189819]
[1724197239298,0.46832415,2585.5,2585.4,3.86787]
[1724197239473,1.686,2585.7,2585.3,7.73585]
[1724197239676,0.46832415,2585.5,2585.3,7.73586]
[1724197239873,4.686,2585.7,2585.3,7.73586]
[1724197240072,0.46832415,2585.4,2585.3,7.73594]
[1724197240315,3.0,2585.8,2585.4,3.8678]
[1724197242965,6.86728,2585.8,2585.4,3.8678]
[1724197243276,6.86728,2585.8,2585.3,3.86792]
[1724197245360,3.0,2585.8,2585.4,3.8678]
[1724197245561,5.55314,2585.9,2585.4,3.8678]
[1724197245788,5.55314,2585.9,2585.5,2.3859]
[1724197246500,3.86714,2585.9,2585.5,2.3859]
[1724197247212,8.55293,2586.1,2585.5,2.3859]
[1724197247376,6.86693,2586.1,2585.6,4.10603]
[1724197247999,10.73384,2586.1,2585.6,4.10603]
[1724197248208,6.86691,2586.1,2585.6,7.73493]
[1724197248415,6.86691,2586.1,2585.6,3.86744]
[1724197248776,0.00557015,2585.8,2585.6,3.86744]
[1724197248995,0.00557015,2585.8,2585.6,7.73491]
[1724197249778,0.00557015,2585.8,2585.6,3.86744]
[1724197250009,0.45333999,2585.7,2585.6,5.04815]
[1724197250394,0.00557015,2585.8,2585.6,5.04815]
[1724197250618,0.45333999,2585.7,2585.6,5.04815]
[1724197251222,0.00557015,2585.8,2585.6,5.04815]
[1724197251223,0.00557015,2585.8,2585.7,3.86742]
[1724197259516,0.00557015,2585.8,2585.7,10.04194]
[1724197259719,0.00557015,2585.8,2585.7,11.164205]
[1724197263002,0.00557015,2585.8,2585.7,15.031625]
[1724197263354,0.00557015,2585.8,2585.7,15.581625]
[1724197264949,0.00557015,2585.8,2585.7,19.449045]
[1724197265092,0.00557015,2585.8,2585.7,22.449045]
[1724197266547,0.00557015,2585.8,2585.7,24.135045]
[1724197267402,0.00557015,2585.8,2585.7,18.581625]
[1724197267818,0.00557015,2585.8,2585.7,20.267625]
[1724197269504,0.00557015,2585.8,2585.7,11.164205]
[1724197269699,0.00557015,2585.8,2585.7,12.850205]
[1724197270898,0.00557015,2585.8,2585.7,13.400205]
[1724197271236,0.00557015,2585.8,2585.7,17.267625]
[1724197271729,0.00557015,2585.8,2585.7,24.135045]
[1724197272758,1.5e-07,2585.8,2585.7,24.135045]
[1724197272898,1.5e-07,2585.8,2585.7,24.523245]
[1724197278023,1.5e-07,2585.8,2585.7,18.969825]
[1724197278348,1.5e-07,2585.8,2585.7,19.717625]
[1724197279123,2.3654,2586.5,2585.7,11.982785]
[1724197279335,2.3654,2586.5,2586.2,3.86654]
[1724197279739,0.45429739,2586.4,2586.2,3.86654]
[1724197279954,2.3654,2586.5,2586.2,3.86654]
[1724197280755,2.3654,2586.5,2586.3,3.86651]
[1724197281153,0.45471573,2586.4,2586.3,3.86651]
[1724197283222,2.3352,2586.7,2586.4,3.86637]
[1724197283662,5.55161,2587.0,2586.3,1.022415]
[1724197283663,2.3958,2587.0,2586.3,1.022415]
[1724197283953,5.3958,2587.0,2586.6,7.73194]
[1724197284362,2.3958,2587.0,2586.6,7.73194]
[1724197284766,2.3958,2587.0,2586.6,3.86595]
[1724197284941,2.3958,2587.0,2586.6,7.73195]
[1724197285136,2.3958,2587.0,2586.6,3.86595]
[1724197286172,2.3958,2587.0,2586.6,7.73193]
[1724197286374,2.3958,2587.0,2586.6,3.86595]
[1724197286980,2.3958,2587.0,2586.7,3.86591]
[1724197287739,2.3958,2587.0,2586.8,3.86566]
[1724197287944,2.4135,2587.3,2586.9,3.86563]
[1724197288147,2.4135,2587.3,2586.8,8.95536]
[1724197288561,2.4135,2587.3,2586.9,3.86562]
[1724197291796,2.4135,2587.3,2586.9,3.85012]
[1724197292313,3.86519,2587.2,2586.8,1.224]
[1724197292508,2.4271,2587.1,2586.8,1.224]
[1724197293213,6.29243,2587.1,2586.8,1.224]
[1724197295158,0.42561595,2587.0,2586.8,1.224]
[1724197297409,0.42561595,2587.0,2586.8,5.08977]
[1724197298517,0.42561595,2587.0,2586.8,1.224]
[1724197298929,0.42561595,2587.0,2586.8,5.08977]
[1724197299341,0.42561595,2587.0,2586.8,1.224]
[1724197302048,7.90303,2586.9,2586.8,1.224]
[1724197302252,11.76866,2586.9,2586.8,1.224]
[1724197302431,12.19427595,2586.9,2586.8,1.224]
[1724197303017,15.19427595,2586.9,2586.8,1.224]
[1724197304448,11.32864595,2586.9,2586.8,1.224]
[1724197305870,5.77701595,2586.9,2586.8,1.224]
[1724197306017,2.77701595,2586.9,2586.8,1.224]
[1724197310359,0.42561595,2586.9,2586.8,1.224]
[1724197313963,6.60464595,2586.9,2586.8,1.224]
[1724197320565,2.73901595,2586.9,2586.8,1.224]
[1724197321789,6.60464595,2586.9,2586.8,1.224]
[1724197322367,0.42561595,2586.9,2586.8,1.224]
[1724197323787,4.29124595,2586.9,2586.8,1.224]
[1724197326515,12.17067595,2586.9,2586.8,1.224]
[1724197328815,8.30504595,2586.9,2586.8,1.224]
[1724197329162,4.29124595,2586.9,2586.8,1.224]
[1724197330508,0.42561595,2586.9,2586.8,1.224]
[1724197330703,3.86534,2587.1,2586.8,1.224]
[1724197330898,0.41086943,2586.9,2586.8,1.224]
[1724197331107,3.86534,2587.1,2586.8,1.224]
[1724197331310,0.41086943,2586.9,2586.8,1.224]
[1724197331600,3.86534,2587.1,2586.8,1.224]
[1724197331763,0.41086943,2586.9,2586.8,1.224]
[1724197331968,3.86534,2587.1,2586.8,1.224]
[1724197332733,0.41086943,2587.0,2586.8,1.224]
[1724197335470,4.27635943,2587.0,2586.8,1.224]
[1724197335910,1.686,2586.9,2586.8,1.224]
[1724197336114,2.09689847,2586.9,2586.8,1.224]
[1724197336689,5.96252847,2586.9,2586.8,1.224]
[1724197340809,9.82815847,2586.9,2586.8,1.224]
[1724197342113,5.96252847,2586.9,2586.8,1.224]
[1724197342420,4.27652847,2586.9,2586.8,1.224]
[1724197350403,4.22652847,2586.9,2586.8,1.224]
[1724197353327,4.22652847,2586.9,2586.8,3.7146]
[1724197354025,4.22652847,2586.9,2586.8,1.224]
[1724197355619,0.36089847,2586.9,2586.8,1.224]
[1724197355927,3.86533,2587.1,2586.8,1.982059]
[1724197356257,3.86533,2587.1,2586.8,1.224]
[1724197356258,0.4091955,2586.9,2586.8,1.224]
[1724197356498,3.86533,2587.1,2586.8,1.224]
[1724197356756,0.4091955,2586.9,2586.8,1.224]
[1724197356938,3.86533,2587.1,2586.9,2.3552]
[1724197357960,0.4091955,2587.0,2586.9,2.3552]
[1724197358443,0.4091955,2587.0,2586.8,1.224]
[1724197362760,4.2746855,2587.0,2586.8,1.224]
[1724197366871,0.4091955,2587.0,2586.8,1.58192]
[1724197367370,3.86518,2587.2,2586.8,1.58192]
[1724197367572,0.40932617,2586.9,2586.8,1.58192]
[1724197367872,3.86518,2587.2,2586.8,1.58192]
[1724197368081,0.40932617,2586.9,2586.8,1.58192]
[1724197368249,3.86518,2587.2,2586.8,1.58192]
[1724197368443,0.40932617,2586.9,2586.8,1.58192]
[1724197368676,3.86534,2587.1,2586.8,1.224]
[1724197368835,0.40932617,2586.9,2586.8,1.224]
[1724197369035,3.86557,2587.0,2586.8,1.224]
[1724197369234,0.40932617,2586.9,2586.8,1.224]
[1724197371248,4.27495617,2586.9,2586.8,1.224]
[1724197372491,12.30778617,2586.9,2586.8,1.224]
[1724197374286,8.44215617,2586.9,2586.8,1.224]
[1724197374486,5.96095617,2586.9,2586.8,1.224]
[1724197375002,4.27495617,2586.9,2586.8,1.224]
[1724197377208,0.40932617,2586.9,2586.8,1.224]
[1724197377494,5.55145,2587.1,2586.8,1.224]
[1724197377689,0.40938424,2586.9,2586.8,1.224]
[1724197378160,9.41682,2587.1,2586.8,1.224]
[1724197378360,0.40938424,2586.9,2586.8,1.224]
[1724197378556,9.41682,2587.1,2586.8,1.224]
[1724197378858,0.40938424,2586.9,2586.8,1.224]
[1724197379054,5.55141,2587.1,2586.8,1.224]
[1724197379282,0.40938424,2586.9,2586.8,1.224]
[1724197379454,9.41684,2587.1,2586.8,1.224]
[1724197379655,0.40938424,2586.9,2586.8,1.224]
[1724197379858,9.41684,2587.1,2586.8,1.224]
[1724197380075,0.40938424,2586.9,2586.8,1.224]
[1724197380688,9.41684,2587.1,2586.8,1.224]
[1724197380891,0.40938424,2586.9,2586.8,1.224]
[1724197381065,3.86549,2587.0,2586.8,1.224]
[1724197381258,0.39554734,2586.9,2586.8,1.224]
[1724197381979,4.26117734,2586.9,2586.8,1.224]
[1724197384160,10.57060734,2586.9,2586.8,1.224]
[1724197384361,12.25660734,2586.9,2586.8,1.224]
[1724197385880,5.94717734,2586.9,2586.8,1.224]
[1724197386394,4.26117734,2586.9,2586.8,1.224]
[1724197386594,0.39554734,2586.9,2586.8,1.224]
[1724197387159,3.86543,2587.1,2586.8,1.980067]
[1724197387500,0.39554734,2586.9,2586.8,1.224]
[1724197388001,7.73089,2587.1,2586.8,1.224]
[1724197388195,0.39554734,2586.9,2586.8,1.224]
[1724197388386,3.86543,2587.1,2586.8,1.224]
[1724197388582,0.39554734,2586.9,2586.8,1.224]
[1724197388784,3.86543,2587.1,2586.8,1.224]
[1724197389094,0.39554734,2586.9,2586.8,1.224]
[1724197389300,3.86543,2587.1,2586.8,1.224]
[1724197389471,0.39554734,2586.9,2586.8,1.224]
[1724197389677,3.40476924,2587.3,2586.8,8.285739]
[1724197389875,0.39554734,2586.9,2586.8,9.971739]
[1724197390175,0.40476924,2587.3,2586.8,9.971739]
[1724197390176,3.86504,2587.3,2586.9,2.3599]
[1724197392872,5.55089,2587.4,2586.9,2.3599]
[1724197393126,9.4159,2587.4,2586.9,3.5670569]
[1724197397287,9.41588,2587.4,2586.9,3.5670569]
[1724197399627,3.86489,2587.4,2587.0,2.255]
[1724197400015,0.39598597,2587.3,2587.0,2.255]
[1724197400222,0.39598597,2587.3,2587.0,3.57235859]
[1724197403124,0.39598597,2587.3,2587.0,2.255]
[1724197407158,0.39598597,2587.3,2587.0,6.12047]
[1724197407523,0.39598597,2587.3,2587.0,2.255]
[1724197411279,5.55124,2587.2,2586.8,3.6299]
[1724197411630,0.3961541,2587.1,2586.8,3.6299]
[1724197411825,4.2615541,2587.1,2586.8,3.6299]
[1724197412033,0.3961541,2587.1,2586.8,7.49563]
[1724197412333,0.3961541,2587.1,2586.8,8.98608991]
[1724197413965,0.3961541,2587.1,2586.9,2.2881]
[1724197414134,3.86504,2587.3,2586.9,2.2881]
[1724197414331,5.55093,2587.4,2586.9,6.15364]
[1724197414332,0.3961541,2587.2,2586.9,6.15364]
[1724197414532,5.55093,2587.4,2586.9,6.15364]
[1724197414773,0.3961541,2587.3,2586.9,6.15364]
[1724197418690,0.3961541,2587.3,2586.9,10.0192]
[1724197418917,0.3961541,2587.3,2587.1,2.3585]
[1724197419226,3.86474,2587.5,2587.1,2.3585]
[1724197419411,0.39616873,2587.2,2587.1,2.3585]
[1724197419626,5.55063,2587.6,2587.1,2.3585]
[1724197419627,3.8649,2587.4,2587.1,2.3585]
[1724197419829,0.39616873,2587.2,2587.1,2.3585]
[1724197420033,3.8649,2587.4,2587.1,2.3585]
[1724197420235,0.39616873,2587.2,2587.1,2.3585]
[1724197420412,3.8649,2587.4,2587.1,2.3585]
[1724197420611,0.39616873,2587.2,2587.1,2.3585]
[1724197420837,3.8649,2587.4,2587.1,2.3585]
[1724197421034,0.39616873,2587.2,2587.1,2.3585]
[1724197421226,3.8649,2587.4,2587.1,2.3585]
[1724197421424,0.39616873,2587.2,2587.1,2.3585]
[1724197421630,3.8649,2587.4,2587.1,2.3585]
[1724197421813,0.39616873,2587.2,2587.1,2.3585]
[1724197422343,3.8649,2587.4,2587.1,2.3585]
[1724197422571,0.39616873,2587.2,2587.1,2.3585]
[1724197422770,3.8649,2587.4,2587.1,2.3585]
[1724197423066,0.39616873,2587.2,2587.1,2.3585]
[1724197423208,3.8649,2587.4,2587.1,2.3585]
[1724197423403,0.39616873,2587.2,2587.1,2.3585]
[1724197423619,3.8649,2587.4,2587.1,2.3585]
[1724197423852,0.39616873,2587.2,2587.1,2.3585]
[1724197424013,3.8649,2587.4,2587.1,2.3585]
[1724197424549,0.39616873,2587.3,2587.1,2.3585]
[1724197425124,0.39616873,2587.3,2586.9,7.40814]
[1724197425320,0.39616873,2587.3,2586.9,6.28382]
[1724197427251,1.686,2587.2,2586.8,1.224]
[1724197427557,3.8654,2587.1,2586.8,1.224]
[1724197427755,4.26156873,2587.1,2586.8,1.224]
[1724197429948,0.39616873,2587.1,2586.8,1.224]
[1724197431449,0.39616873,2587.1,2586.8,5.08977]
[1724197431949,0.39616873,2587.1,2586.8,7.45687]
[1724197434348,0.39616873,2587.1,2586.8,4.46997878]
[1724197434570,5.55083,2587.5,2587.0,3.86548]
[1724197435299,1.686,2587.3,2586.9,3.86562]
[1724197435592,1.686,2587.3,2586.9,3.86555]
[1724197435768,1.686,2587.3,2586.9,7.7311]
[1724197436498,1.686,2587.3,2586.9,3.86555]
[1724197438752,1.686,2587.3,2586.8,1.224]
[1724197438964,2.3276,2587.2,2586.8,1.224]